Workbook

Sheet Munka1
A1: A Szegedi Tudományegyetem közoktatási intézményei részére a költségvetésben biztosított normatív hozzájárulás és támogatás 1 főre jutó összege
A2: költségvetési év: 2011.
A7: Normatív hozzájárulások / normatív kötött felhasználású támogatások jogcímei | B7: Támogatás összege (Ft)
B8: JGYPK Gyakorló Általános Iskolája, Alapfokú Művészetoktatási Intézménye, Napköziotthonos Óvodája | C8: Ságvári Endre Gyakorló Általános Iskola | D8: Ságvári Endre Gyakorló Gimnázium | E8: Vántus István Gyakorló Zeneművészeti Szakközépiskola
A9: Óvodai nevelésben, általános iskolában, középiskolában, szakiskola 9-10. évfolyamán, szakképzés elméleti képzésben, alapfokú művészetoktatásban, a napközi vagy tanulószobai foglalkoztatásban, iskolaotthonos nevelésben, oktatásban részt vevő, valamint kollégiumban, externátusban elhelyezett gyerek után | B9: =240953334+135673334 -> 376626668 | C9: =136300000+69403334 -> 205703334 | D9: 304090000 | E9: =27886666+14256666 -> 42143332
A10: - OKJ/1 évfolyamos szakképzésben, - 2,5, ill. 3 éves képz. 2. évf-on, - tanműhely vagy költségvetési szervnél | B10: 0 | C10: 0 | D10: 0 | E10: =2613334+1568000 -> 4181334
A11: Sajátos nevelési igényű gyermekek, tanulók nevelése, oktatása
A12: a.) Fejlesztő felkészítés | B12: 22570000 | C12: 0 | D12: 0 | E12: 0
A13: b.) Beszédfogyatékos, enyhe értelmi fogyatékos, viselkedés fejlődésének organikus okokra visszavezethető tartós és súlyos rendellenessége | B13: =1433600+1075200 -> 2508800 | C13: =477866+358400 -> 836266 | D13: 0 | E13: 0
A14: c.)A viselkedés fejlődésének organikus okokra vissza nem vezethetően tartós és súlyos rendellenessége miatt sajátos nev-i igényű tanulók után | B14: =1075200+1149866 -> 2225066 | C14: =179200+209066 -> 388266 | D14: 672000 | E14: =358400+209066 -> 567466
A15: Nappali rendszerű iskolai oktatás nemzetiségi nyelven vagy nemzetiségi és magyar nyelven, két tanítási nyelven, helyi ped. program alapján nyelvi előkészítő évf. biztosít oktatást | B15: 0 | C15: 0 | D15: 5760000 | E15: 0
A16: Párhuzamos művészeti képzést folytató szakközépiskola 5-12 évfolyamán, ill. Ktv. 29.§-a szerint 13. évfolyamon ált. műveltség és műv. szakképesítésre felkészítő oktatásban (16.1. nem igényelhető) | B16: 0 | C16: 0 | D16: 0 | E16: 22680000
A17: Minősített alapfokú művészeti oktatás zeneművészeti ágon | B17: 11554266 | C17: 0 | D17: 0 | E17: 11340000
A18: Minősített alapfokú művészeti oktatás képző- és iparművészeti, táncművészeti, szín- és bábművészeti ágon, valamint a zeneművészeti ágon csoportos főtanszakos zeneoktatásban | B18: 9621334 | C18: 0 | D18: 0 | E18: 0
A19: A középszintű érettségi vizsga és szakmai vizsga lebonyolítása A tám. a közokt. tv. 114.§-ában meghatározott ingyenes vizsgák után | B19: 0 | C19: 0 | D19: 1026000 | E19: 228000
A20: Szakmai, informatikai fejlesztési feladatok támogatása nappali rendszerű oktatásban részt vevő tanulók után járó támogatás | B20: 1543500 | C20: 1095500 | D20: 1240750 | E20: 141750
A21: Óvodában, iskolában, kollégiumban szervezett kedvezményes étkeztetés | B21: 16796000 | C21: 11356000 | D21: 3332000 | E21: 612000
A22: Tanulók ingyenes tankönyvellátása | B22: 2892000 | C22: 2520000 | D22: 2112000 | E22: 372000
A24: Pedagógus szakvizsga, továbbképzés | B24: 1018500 | C24: 546000 | D24: 661500 | E24: 199500
A25: Osztályfőnöki pótlék | B25: 1300000 | C25: 624000 | D25: 528667 | E25: 130000
A26: Gyógypedagógiai pótlék | B26: 65000 | C26: 433333 | D26: 0 | E26: 0
A27: SNI tankönyvtámogatás | B27: 25034 | C27: 19027 | D27: 0 | E27: 0
A28: ÖSSZESEN | B28: =SUM(B9:B27) -> 448746168 | C28: =SUM(C9:C27) -> 223521726 | D28: 319422917 | E28: =SUM(E9:E27) -> 82595382
A30: Átlagos létszám 2011. évben (fő) | B30: 978.67 | C30: 626 | D30: 724 | E30: 99.33
A31: 1 főre jutó normatív támogatás és hozzájárulás (Ft/fő) | B31: =B28/B30 -> 458526.5391 | C31: =C28/C30 -> 357063.4601 | D31: 441191.8743 | E31: 831525.0378
A32: Normatív hozzájárulás a teljes intézményi költségvetési főösszeg %-ában | B32: =B28/510835000 -> 0.8784561904 | C32: =C28/347821000 -> 0.6426343608 | D32: =D28/330099000 -> 0.967657936 | E32: =E28/84922000 -> 0.9726028826
A33: OM azonosító | B33: 29681 | C33: 29635 | D33: 29742 | E33: 200423

Sheet Munka2

Sheet Munka3
